fUST/lending_fUST_20250819
["ID","MTS","AMOUNT","RATE_DAILY","PERIOD"]
[380138472,1755569444442,-480.0,0.00019726,2]
[380138473,1755569444454,-480.0,0.00019726,2]
[380138474,1755569444467,-620.84124652,0.00019726,2]
[380138475,1755569444477,-480.0,0.00019726,2]
[380138476,1755569444486,-480.0,0.00019726,2]
[380138477,1755569444496,-243.22238701,0.00019726,2]
[380138478,1755569444505,-480.0,0.00019726,2]
[380138479,1755569444515,-480.0,0.00019726,2]
[380138480,1755569444524,-480.0,0.00019726,2]
[380138481,1755569444534,-497.02014658,0.00019726,2]
[380138482,1755569444543,-480.0,0.00019726,2]
[380138483,1755569444552,-480.0,0.00019726,2]
[380138484,1755569444562,-480.0,0.00019726,2]
[380138485,1755569444571,-468.4591498,0.00019726,2]
[380138486,1755569444580,-480.0,0.00019726,2]
[380138487,1755569444590,-480.0,0.00019726,2]
[380138488,1755569444600,-480.0,0.00019726,2]
[380138489,1755569444609,-480.0,0.00019726,2]
[380138490,1755569444620,-151.0,0.00019726,2]
[380138491,1755569444629,-480.0,0.00019726,2]
[380138492,1755569444639,-836.9,0.00019726,2]
[380138493,1755569444648,-488.84941899,0.00019726,2]
[380138494,1755569444658,-480.0,0.00019726,2]
[380138495,1755569444667,-151.0,0.00019726,2]
[380138496,1755569444677,-480.0,0.00019726,2]
[380138497,1755569444686,-151.0,0.00019726,2]
[380138498,1755569444696,-468.51459334,0.00019726,2]
[380138499,1755569444705,-480.0,0.00019726,2]
[380138500,1755569444715,-164.649092,0.00019726,2]
[380138501,1755569444725,-151.0,0.00019726,2]
[380138502,1755569444735,-151.833911,0.00019726,2]
[380138503,1755569444745,-164.649092,0.00019726,2]
[380138504,1755569444754,-512.57,0.00019726,2]
[380138505,1755569444764,-480.0,0.00019726,2]
[380138506,1755569444774,-626.28,0.00019726,2]
[380138507,1755569444783,-664.34,0.00019726,2]
[380138508,1755569444791,-480.0,0.00019726,2]
[380138509,1755569444801,-480.0,0.00019726,2]
[380138510,1755569444810,-480.0,0.00019726,2]
[380138511,1755569444820,-151.0,0.00019726,2]
[380138512,1755569444829,-480.0,0.00019726,2]
[380138513,1755569444838,-480.0,0.00019726,2]
[380138514,1755569444848,-737.72,0.00019726,2]
[380138515,1755569444858,-151.0,0.00019726,2]
[380138516,1755569444868,-480.0,0.00019726,2]
[380138517,1755569444877,-746.44,0.00019726,2]
[380138518,1755569444887,-470.41920347,0.00019726,2]
[380138519,1755569444896,-480.0,0.00019726,2]
[380138520,1755569444905,-151.0,0.00019726,2]
[380138521,1755569444915,-151.0,0.00019726,2]
[380138522,1755569444923,-151.0,0.00019726,2]
[380138523,1755569444933,-151.0,0.00019726,2]
[380138524,1755569444942,-2459.91,0.00019726,2]
[380138525,1755569445042,-480.0,0.00019726,2]
[380138526,1755569445053,-480.0,0.00019726,2]
[380138527,1755569445064,-480.0,0.00019726,2]
[380138528,1755569445073,-480.0,0.00019726,2]
[380138529,1755569445082,-151.0,0.00019726,2]
[380138530,1755569445091,-423.84470316,0.00019726,2]
[380138531,1755569445100,-151.0,0.00019726,2]
[380138532,1755569445109,-480.0,0.00019726,2]
[380138533,1755569445118,-480.0,0.00019726,2]
[380138534,1755569445127,-186.714639,0.00019726,2]
[380138535,1755569445137,-186.714639,0.00019726,2]
[380138536,1755569445146,-480.0,0.00019726,2]
[380138537,1755569445156,-480.0,0.00019726,2]
[380138538,1755569445165,-480.0,0.00019726,2]
[380138539,1755569445174,-480.0,0.00019726,2]
[380138540,1755569445184,-480.0,0.00019726,2]
[380138541,1755569445193,-480.0,0.00019726,2]
[380138542,1755569445202,-480.0,0.00019726,2]
[380138543,1755569445211,-480.0,0.00019726,2]
[380138544,1755569445220,-465.25368879,0.00019726,2]
[380138545,1755569445230,-151.0,0.00019726,2]
[380138546,1755569445240,-480.0,0.00019726,2]
[380138547,1755569445249,-463.44535643,0.00019726,2]
[380138548,1755569445259,-539.644335,0.00019726,2]
[380138549,1755569445269,-480.0,0.00019726,2]
[380138550,1755569445278,-812.72,0.00019726,2]
[380138551,1755569445288,-539.644335,0.00019726,2]
[380138552,1755569445297,-480.0,0.00019726,2]
[380138553,1755569445306,-151.0,0.00019726,2]
[380138554,1755569445316,-483.64250214,0.00019726,2]
[380138555,1755569445325,-1314.16,0.00019726,2]
[380138556,1755569445335,-480.0,0.00019726,2]
[380138557,1755569445344,-151.0,0.00019726,2]
[380138558,1755569445354,-151.0,0.00019726,2]
[380138559,1755569445363,-485.02196102,0.00019726,2]
[380138560,1755569445373,-659.7,0.00019726,2]
[380138561,1755569445382,-480.0,0.00019726,2]
[380138562,1755569445392,-465.89491794,0.00019726,2]
[380138563,1755569445401,-480.0,0.00019726,2]
[380138564,1755569445410,-480.0,0.00019726,2]
[380138565,1755569445419,-151.0,0.00019726,2]
[380138566,1755569445429,-480.0,0.00019726,2]
[380138567,1755569445439,-151.0,0.00019726,2]
[380138568,1755569445449,-480.0,0.00019726,2]
[380138569,1755569445459,-151.0,0.00019726,2]
[380138570,1755569445468,-480.0,0.00019726,2]
[380138571,1755569445479,-151.0,0.00019726,2]
[380138572,1755569445488,-480.0,0.00019726,2]
[380138573,1755569445497,-480.0,0.00019726,2]
[380138574,1755569445507,-151.0,0.00019726,2]
[380138575,1755569445516,-480.0,0.00019726,2]
[380138576,1755569445526,-480.0,0.00019726,2]
[380138578,1755569445535,-359.868196,0.00019726,2]
[380138580,1755569445544,-359.868196,0.00019726,2]
[380138582,1755569445554,-480.0,0.00019726,2]
[380138583,1755569445563,-480.0,0.00019726,2]
[380138584,1755569445573,-151.0,0.00019726,2]
[380138585,1755569445582,-480.0,0.00019726,2]
[380138586,1755569445591,-193.298878,0.00019726,2]
[380138587,1755569445600,-303.10018812,0.00019726,2]
[380138589,1755569445609,-151.0,0.00019726,2]
[380138591,1755569445618,-193.298878,0.00019726,2]
[380138593,1755569445627,-480.0,0.00019726,2]
[380138595,1755569445637,-480.0,0.00019726,2]
[380138597,1755569445646,-458.44102603,0.00019726,2]
[380138599,1755569445656,-480.0,0.00019726,2]
[380138600,1755569445665,-965.71,0.00019726,2]
[380138601,1755569445674,-480.0,0.00019726,2]
[380138602,1755569445683,-480.0,0.00019726,2]
[380138603,1755569445692,-485.52561316,0.00019726,2]
[380138604,1755569445701,-480.0,0.00019726,2]
[380138605,1755569445710,-480.0,0.00019726,2]
[380138606,1755569445720,-481.92052531,0.00019726,2]
[380138607,1755569445729,-151.0,0.00019726,2]
[380138608,1755569445739,-151.0,0.00019726,2]
[380138609,1755569445748,-484.26863453,0.00019726,2]
[380138610,1755569445758,-480.0,0.00019726,2]
[380138611,1755569445767,-151.0,0.00019726,2]
[380138612,1755569445777,-480.0,0.00019726,2]
[380138613,1755569445787,-492.0,0.00019726,2]
[380138614,1755569445797,-1097.4,0.00019726,2]
[380138615,1755569445806,-480.0,0.00019726,2]
[380138616,1755569445816,-904.97,0.00019726,2]
[380138617,1755569445825,-480.0,0.00019726,2]
[380138618,1755569445834,-151.0,0.00019726,2]
[380138619,1755569445843,-540.59,0.00019726,2]
[380138620,1755569445854,-480.0,0.00019726,2]
[380138621,1755569445864,-480.0,0.00019726,2]
[380138622,1755569445873,-151.0,0.00019726,2]
[380138623,1755569445882,-1180.296329,0.00019726,2]
[380138624,1755569445891,-480.0,0.00019726,2]
[380138625,1755569445901,-1180.296329,0.00019726,2]
[380138626,1755569445910,-1068.2,0.00019726,2]
[380138627,1755569445920,-480.0,0.00019726,2]
[380138628,1755569445929,-1034.19,0.00019726,2]
[380138629,1755569445939,-480.0,0.00019726,2]
[380138630,1755569445948,-462.21984648,0.00019726,2]
[380138631,1755569445958,-151.0,0.00019726,2]
[380138632,1755569445967,-480.0,0.00019726,2]
[380138633,1755569445976,-480.0,0.00019726,2]
[380138634,1755569445986,-480.0,0.00019726,2]
[380138635,1755569446000,-151.0,0.00019726,2]
[380138636,1755569446010,-273.697609,0.00019726,2]
[380138637,1755569446019,-151.0,0.00019726,2]
[380138638,1755569446031,-480.0,0.00019726,2]
[380138639,1755569446041,-151.0,0.00019726,2]
[380138640,1755569446050,-480.0,0.00019726,2]
[380138641,1755569446059,-151.0,0.00019726,2]
[380138642,1755569446070,-2282.8,0.00019726,2]
[380138643,1755569446082,-151.0,0.00019726,2]
[380138644,1755569446091,-480.0,0.00019726,2]
[380138645,1755569446102,-5516.67,0.00019726,2]
[380138646,1755569446113,-480.0,0.00019726,2]
[380138647,1755569446125,-300.98365471,0.00019726,2]
[380138648,1755569446135,-480.0,0.00019726,2]
[380138649,1755569446145,-151.0,0.00019726,2]
[380138650,1755569446155,-304.753449,0.00019726,2]
[380138651,1755569446164,-1057.58,0.00019726,2]
[380138652,1755569446174,-498.88,0.00019726,2]
[380138653,1755569446183,-304.753449,0.00019726,2]
[380138654,1755569446193,-480.0,0.00019726,2]
[380138655,1755569446203,-464.317707,0.00019726,2]
[380138656,1755569446212,-480.0,0.00019726,2]
[380138657,1755569446223,-480.0,0.00019726,2]
[380138658,1755569446233,-480.0,0.00019726,2]
[380138659,1755569446243,-1278.63,0.00019726,2]
[380138660,1755569446253,-687.98,0.00019726,2]
[380138661,1755569446262,-151.0,0.00019726,2]
[380138662,1755569446272,-480.0,0.00019726,2]
[380138663,1755569446281,-1107.14,0.00019726,2]
[380138664,1755569446291,-480.0,0.00019726,2]
[380138665,1755569446300,-480.0,0.00019726,2]
[380138666,1755569446309,-299.739773,0.00019726,2]
[380138667,1755569446319,-480.0,0.00019726,2]
[380138668,1755569446329,-480.0,0.00019726,2]
[380138669,1755569446340,-299.739773,0.00019726,2]
[380138670,1755569446349,-1194.54,0.00019726,2]
[380138671,1755569446358,-480.0,0.00019726,2]
[380138672,1755569446368,-2421.81,0.00019726,2]
[380138673,1755569446377,-714.08,0.00019726,2]
[380138674,1755569446386,-480.0,0.00019726,2]
[380138675,1755569446397,-547.23815708,0.00019726,2]
[380138676,1755569446407,-1871.72,0.00019726,2]
[380138677,1755569446417,-1718.3,0.00019726,2]
[380138678,1755569446426,-1558.82,0.00019726,2]
[380138679,1755569446436,-871.6,0.00019726,2]
[380138680,1755569446446,-152.44289,0.00019726,2]
[380138681,1755569446456,-152.44289,0.00019726,2]
[380138682,1755569446465,-152.44289,0.00019726,2]
[380138683,1755569446475,-152.44289,0.00019726,2]
[380138684,1755569446486,-480.0,0.00019726,2]
[380138685,1755569446495,-480.0,0.00019726,2]
[380138686,1755569446506,-151.0,0.00019726,2]
[380138687,1755569446515,-151.0,0.00019726,2]
[380138688,1755569446525,-480.0,0.00019726,2]
[380138689,1755569446535,-443.16705912,0.00019726,2]
[380138690,1755569446545,-191.779854,0.00019726,2]
[380138691,1755569446554,-620.47156481,0.00019726,2]
[380138692,1755569446565,-151.0,0.00019726,2]
[380138693,1755569446575,-783.55,0.00019726,2]
[380138694,1755569446583,-480.0,0.00019726,2]
[380138695,1755569446594,-2004.55,0.00019726,2]
[380138696,1755569446604,-480.0,0.00019726,2]
[380138697,1755569446614,-480.0,0.00019726,2]
[380138698,1755569446623,-489.62228791,0.00019726,2]
[380138699,1755569446633,-480.0,0.00019726,2]
[380138700,1755569446642,-480.0,0.00019726,2]
[380138701,1755569446651,-480.0,0.00019726,2]
[380138702,1755569446661,-466.42186233,0.00019726,2]
[380138703,1755569446671,-1960.4,0.00019726,2]
[380138704,1755569446681,-151.0,0.00019726,2]
[380138705,1755569446690,-480.0,0.00019726,2]
[380138706,1755569446699,-480.0,0.00019726,2]
[380138707,1755569446709,-715.81,0.00019726,2]
[380138708,1755569446718,-151.0,0.00019726,2]
[380138709,1755569446727,-1194.52,0.00019726,2]
[380138710,1755569446738,-484.96101819,0.00019726,2]
[380138711,1755569446747,-480.0,0.00019726,2]
[380138712,1755569446756,-487.96,0.00019726,2]
[380138713,1755569446766,-151.0,0.00019726,2]
[380138714,1755569446775,-2086.06,0.00019726,2]
[380138715,1755569446784,-3600.09,0.00019726,2]
[380138716,1755569446794,-151.0,0.00019726,2]
[380138717,1755569446803,-480.0,0.00019726,2]
[380138718,1755569446813,-480.0,0.00019726,2]
[380138719,1755569446824,-151.0,0.00019726,2]
[380138720,1755569446833,-480.0,0.00019726,2]
[380138721,1755569446844,-480.0,0.00019726,2]
[380138722,1755569446854,-239.892034,0.00019726,2]
[380138723,1755569446863,-480.0,0.00019726,2]
[380138724,1755569446873,-239.892034,0.00019726,2]
[380138725,1755569446882,-480.0,0.00019726,2]
[380138726,1755569446892,-480.0,0.00019726,2]
[380138727,1755569446901,-1074.02,0.00019726,2]
[380138728,1755569446911,-154.012613,0.00019726,2]
[380138729,1755569446920,-2636.33,0.00019726,2]
[380138730,1755569446929,-600.88,0.00019726,2]
[380138731,1755569446939,-954.96,0.00019726,2]
[380138732,1755569446950,-485.56053033,0.00019726,2]
[380138733,1755569446959,-151.0,0.00019726,2]
[380138734,1755569447053,-480.0,0.00019726,2]
[380138735,1755569447063,-151.0,0.00019726,2]
[380138736,1755569447073,-480.0,0.00019726,2]
[380138737,1755569447083,-151.0,0.00019726,2]
[380138738,1755569447092,-480.0,0.00019726,2]
[380138739,1755569447102,-480.0,0.00019726,2]
[380138740,1755569447111,-563.21,0.00019726,2]
[380138741,1755569447120,-528.35,0.00019726,2]
[380138742,1755569447130,-951.14,0.00019726,2]
[380138743,1755569447139,-480.0,0.00019726,2]
[380138744,1755569447149,-565.87,0.00019726,2]
[380138745,1755569447159,-151.0,0.00019726,2]
[380138746,1755569447168,-819.1,0.00019726,2]
[380138747,1755569447178,-775.8,0.00019726,2]
[380138748,1755569447188,-480.0,0.00019726,2]
[380138749,1755569447197,-480.0,0.00019726,2]
[380138750,1755569447207,-707.35,0.00019726,2]
[380138751,1755569447216,-480.0,0.00019726,2]
[380138752,1755569447226,-465.261341,0.00019726,2]
[380138753,1755569447235,-316.778016,0.00019726,2]
[380138754,1755569447245,-480.0,0.00019726,2]
[380138755,1755569447254,-480.0,0.00019726,2]
[380138756,1755569447263,-465.261341,0.00019726,2]
[380138757,1755569447272,-2464.01,0.00019726,2]
[380138758,1755569447282,-811.948929,0.00019726,2]
[380138759,1755569447291,-151.0,0.00019726,2]
[380138760,1755569447301,-480.0,0.00019726,2]
[380138761,1755569447310,-151.0,0.00019726,2]
[380138762,1755569447319,-2286.39,0.00019726,2]
[380138763,1755569447328,-811.948929,0.00019726,2]
[380138764,1755569447339,-154.004068,0.00019726,2]
[380138765,1755569447348,-2109.91,0.00019726,2]
[380138766,1755569447358,-480.0,0.00019726,2]
[380138767,1755569447367,-480.0,0.00019726,2]
[380138768,1755569447377,-151.0,0.00019726,2]
[380138769,1755569447386,-151.0,0.00019726,2]
[380138770,1755569447395,-32.76675186,0.00019726,2]
[380138775,1755569447556,-317.60830049,0.00019726,2]
[380138793,1755569448109,-793.44,0.00019178,2]
[380138794,1755569448119,-28.83888906,0.00019178,2]
[380138795,1755569448325,-750.68957383,0.00019078,2]
[380138796,1755569448336,-333.67086873,0.00019078,2]
[380138802,1755569492978,155.28555342,0.00027112,120]
[380138804,1755569693321,176.078624,0.00013699,2]
[380138807,1755569796405,1741.90449514,0.00028767,120]
[380138808,1755569816645,161.04200295,0.00013,2]
[380138818,1755570219674,201.73,0.0002876,120]
[380138821,1755570379455,10000.0,0.00028767,120]
[380138822,1755570384287,10000.0,0.00028767,120]
[380138862,1755570428174,-584.32242385,0.00018739,2]
[380138881,1755570466105,10000.0,0.00028767,120]
[380138882,1755570472471,10000.0,0.00028767,120]
[380138883,1755570491558,5952.09347908,0.00027101,120]
[380138884,1755570497099,5081.88,0.00028767,120]
[380138885,1755570512539,205.22186998,0.00027101,120]
[380138886,1755570519726,1237.07070109,0.00027101,120]
[380138887,1755570520740,232.37039191,0.00027101,120]
[380138889,1755570574257,926.1755482,0.00017803,2]
[380138890,1755570576346,3700.99749062,0.00017803,2]
[380138896,1755570632631,-1200.0,0.00018738,2]
[380138897,1755570632644,-817.0,0.00018739,2]
[380138898,1755570632653,-300.0,0.00018739,2]
[380138899,1755570632662,-300.0,0.00018739,2]
[380138900,1755570632671,-300.0,0.00018739,2]
[380138902,1755570632681,-440.56926217,0.0001874,2]
[380138904,1755570632690,-341.32872174,0.0001874,2]
[380138906,1755570632698,-1363.94957206,0.0001874,2]
[380138907,1755570632708,-1179.79154282,0.00019021,2]
[380138910,1755570632719,-248.14851409,0.00019078,2]
[380138911,1755570632728,-4502.27127191,0.00019078,2]
[380138913,1755570632738,-268.76566447,0.00019078,2]
[380138916,1755570632747,-422.61857442,0.00019078,2]
[380138918,1755570632756,-223.07165182,0.00019134,2]
[380138919,1755570632766,-153.81016941,0.00019166,2]
[380138920,1755570632775,-500.0,0.00019173,2]
[380138921,1755570632785,-504.72793019,0.00019173,2]
[380138922,1755570632794,-502.08271606,0.00019173,2]
[380138923,1755570632803,-509.93235097,0.00019173,2]
[380138924,1755570632814,-500.0,0.00019173,2]
[380138925,1755570632823,-486.20982051,0.00019173,2]
[380138926,1755570632832,-500.0,0.00019173,2]
[380138927,1755570632842,-305.63786202,0.00019177,2]
[380138928,1755570632851,-301.81607471,0.00019177,2]
[380138929,1755570632860,-514.14518751,0.00019177,2]
[380138930,1755570632869,-513.90245423,0.00019177,2]
[380138931,1755570632879,-563.0493866,0.00019177,2]
[380138932,1755570632888,-500.0,0.00019177,2]
[380138933,1755570632897,-500.0,0.00019177,2]
[380138934,1755570632907,-500.0,0.00019177,2]
[380138935,1755570632916,-500.0,0.00019177,2]
[380138936,1755570632926,-500.0,0.00019177,2]
[380138937,1755570632935,-500.0,0.00019177,2]
[380138938,1755570632945,-500.0,0.00019177,2]
[380138939,1755570632954,-500.0,0.00019177,2]
[380138940,1755570632963,-500.0,0.00019177,2]
[380138941,1755570632973,-500.0,0.00019177,2]
[380138942,1755570632982,-500.0,0.00019177,2]
[380138943,1755570632992,-500.0,0.00019177,2]
[380138944,1755570633001,-500.0,0.00019177,2]
[380138945,1755570633011,-500.0,0.00019177,2]
[380138946,1755570633021,-317.69007633,0.00019177,2]
[380138947,1755570633144,-500.0,0.00019177,2]
[380138948,1755570633154,-367.42261924,0.00019177,2]
[380138949,1755570633167,-421.31005119,0.00019177,2]
[380138950,1755570633177,-500.0,0.00019177,2]
[380138951,1755570633187,-500.0,0.00019177,2]
[380138952,1755570633197,-500.0,0.00019177,2]
[380138953,1755570633207,-500.0,0.00019177,2]
[380138954,1755570633217,-500.0,0.00019177,2]
[380138955,1755570633227,-500.0,0.00019177,2]
[380138956,1755570633237,-500.0,0.00019177,2]
[380138957,1755570633247,-500.0,0.00019177,2]
[380138958,1755570633256,-500.0,0.00019177,2]
[380138959,1755570633266,-500.0,0.00019177,2]
[380138960,1755570633275,-481.64305989,0.00019178,2]
[380138961,1755570633285,-599.49602459,0.00019178,2]
[380138962,1755570633295,-482.17179078,0.00019178,2]
[380138963,1755570633304,-480.0,0.00019178,2]
[380138964,1755570633318,-480.0,0.00019178,2]
[380138965,1755570633328,-488.93694084,0.00019178,2]
[380138966,1755570633338,-480.0,0.00019178,2]
[380138967,1755570633347,-480.0,0.00019178,2]
[380138968,1755570633357,-481.85813162,0.00019178,2]
[380138969,1755570633366,-480.0,0.00019178,2]
[380138970,1755570633376,-480.0,0.00019178,2]
[380138971,1755570633386,-460.0,0.00019178,2]
[380138972,1755570633395,-480.0,0.00019178,2]
[380138973,1755570633405,-480.0,0.00019178,2]
[380138974,1755570633415,-480.0,0.00019178,2]
[380138975,1755570633425,-593.82,0.00019178,2]
[380138976,1755570633434,-485.55961665,0.00019178,2]
[380138977,1755570633443,-465.05728903,0.00019178,2]
[380138978,1755570633453,-462.30497847,0.00019178,2]
[380138979,1755570633463,-442.30360741,0.00019178,2]
[380138980,1755570633473,-480.0,0.00019178,2]
[380138981,1755570633483,-480.0,0.00019178,2]
[380138982,1755570633492,-480.0,0.00019178,2]
[380138983,1755570633502,-480.0,0.00019178,2]
[380138984,1755570633512,-480.0,0.00019178,2]
[380138985,1755570633521,-480.0,0.00019178,2]
[380138986,1755570633531,-480.0,0.00019178,2]
[380138987,1755570633541,-428.66603769,0.00019178,2]
[380138988,1755570633551,-480.0,0.00019178,2]
[380138989,1755570633560,-480.0,0.00019178,2]
[380138990,1755570633570,-480.0,0.00019178,2]
[380138991,1755570633579,-480.0,0.00019178,2]
[380138992,1755570633589,-480.0,0.00019178,2]
[380138993,1755570633598,-480.0,0.00019178,2]
[380138994,1755570633608,-480.0,0.00019178,2]
[380138995,1755570633617,-480.0,0.00019178,2]
[380138996,1755570633627,-480.0,0.00019178,2]
[380138997,1755570633639,-409.10527255,0.00019178,2]
[380138998,1755570633648,-481.74191916,0.00019178,2]
[380138999,1755570633657,-369.76097887,0.00019178,2]
[380139000,1755570633667,-480.0,0.00019178,2]
[380139001,1755570633676,-483.67263087,0.00019178,2]
[380139002,1755570633686,-442.97800849,0.00019178,2]
[380139003,1755570633696,-480.0,0.00019178,2]
[380139004,1755570633705,-480.0,0.00019178,2]
[380139005,1755570633714,-480.0,0.00019178,2]
[380139006,1755570633723,-480.0,0.00019178,2]
[380139007,1755570633733,-611.5,0.00019178,2]
[380139008,1755570633742,-480.0,0.00019178,2]
[380139009,1755570633751,-480.0,0.00019178,2]
[380139010,1755570633760,-480.0,0.00019178,2]
[380139011,1755570633770,-500.0,0.00019178,2]
[380139012,1755570633780,-480.0,0.00019178,2]
[380139013,1755570633789,-480.0,0.00019178,2]
[380139014,1755570633799,-480.0,0.00019178,2]
[380139015,1755570633809,-480.0,0.00019178,2]
[380139016,1755570633819,-480.0,0.00019178,2]
[380139017,1755570633828,-447.23342983,0.00019178,2]
[380139018,1755570633837,-480.0,0.00019178,2]
[380139019,1755570633847,-480.0,0.00019178,2]
[380139020,1755570633856,-480.0,0.00019178,2]
[380139022,1755570633865,-480.0,0.00019178,2]
[380139024,1755570633875,-480.0,0.00019178,2]
[380139026,1755570633885,-622.55217963,0.00019178,2]
[380139028,1755570633894,-481.98015256,0.00019178,2]
[380139030,1755570633903,-480.0,0.00019178,2]
[380139032,1755570633912,-480.0,0.00019178,2]
[380139033,1755570633922,-480.0,0.00019178,2]
[380139034,1755570633931,-480.0,0.00019178,2]
[380139035,1755570633941,-480.0,0.00019178,2]
[380139036,1755570633951,-481.92052531,0.00019178,2]
[380139037,1755570633960,-480.0,0.00019178,2]
[380139038,1755570633971,-480.0,0.00019178,2]
[380139039,1755570633980,-480.0,0.00019178,2]
[380139040,1755570633990,-480.0,0.00019178,2]
[380139041,1755570634001,-480.0,0.00019178,2]
[380139042,1755570634011,-480.0,0.00019178,2]
[380139043,1755570634021,-480.0,0.00019178,2]
[380139044,1755570634032,-1007.63663936,0.00019178,2]
[380139045,1755570634042,-574.47,0.00019178,2]
[380139046,1755570634052,-480.0,0.00019178,2]
[380139047,1755570634062,-151.3688699,0.00019178,2]
[380139048,1755570634073,-7306.27,0.00019178,2]
[380139049,1755570634083,-151.0,0.00019178,2]
[380139050,1755570634093,-480.0,0.00019178,2]
[380139051,1755570634104,-250.11837039,0.00019178,2]
[380139052,1755570634114,-151.0,0.00019178,2]
[380139053,1755570634124,-151.0,0.00019178,2]
[380139054,1755570634135,-151.0,0.00019178,2]
[380139055,1755570634145,-480.0,0.00019178,2]
[380139056,1755570634155,-483.58184982,0.00019178,2]
[380139057,1755570634164,-480.0,0.00019178,2]
[380139058,1755570634174,-760.38,0.00019178,2]
[380139059,1755570634183,-542.07390925,0.00019178,2]
[380139060,1755570634193,-480.0,0.00019178,2]
[380139061,1755570634203,-332.40626471,0.00019178,2]
[380139062,1755570634212,-483.21321405,0.00019178,2]
[380139063,1755570634222,-382.70278884,0.00019178,2]
[380139064,1755570634231,-480.0,0.00019178,2]
[380139065,1755570634240,-483.21024377,0.00019178,2]
[380139066,1755570634250,-480.0,0.00019178,2]
[380139067,1755570634259,-480.0,0.00019178,2]
[380139068,1755570634268,-480.0,0.00019178,2]
[380139069,1755570634278,-462.21984648,0.00019178,2]
[380139070,1755570634287,-397.60744112,0.00019178,2]
[380139071,1755570634296,-480.0,0.00019178,2]
[380139072,1755570634306,-482.68702148,0.00019178,2]
[380139073,1755570634316,-483.68220488,0.00019178,2]
[380139074,1755570634325,-480.0,0.00019178,2]
[380139075,1755570634334,-500.0,0.00019178,2]
[380139076,1755570634343,-510.49457573,0.00019178,2]
[380139077,1755570634352,-480.0,0.00019178,2]
[380139078,1755570634362,-480.0,0.00019178,2]
[380139079,1755570634371,-1903.23,0.00019178,2]
[380139080,1755570634381,-480.0,0.00019178,2]
[380139081,1755570634390,-480.0,0.00019178,2]
[380139082,1755570634400,-476.45636938,0.00019178,2]
[380139083,1755570634409,-486.45903791,0.00019178,2]
[380139084,1755570634419,-151.0,0.00019178,2]
[380139085,1755570634428,-487.58006197,0.00019178,2]
[380139086,1755570634437,-151.18824802,0.00019178,2]
[380139087,1755570634446,-151.0,0.00019178,2]
[380139088,1755570634455,-424.12774147,0.00019178,2]
[380139089,1755570634464,-480.0,0.00019178,2]
[380139090,1755570634474,-480.0,0.00019178,2]
[380139091,1755570634483,-787.47,0.00019178,2]
[380139092,1755570634492,-463.46920045,0.00019178,2]
[380139093,1755570634502,-464.317707,0.00019178,2]
[380139094,1755570634511,-480.0,0.00019178,2]
[380139095,1755570634521,-484.32121842,0.00019178,2]
[380139096,1755570634530,-480.0,0.00019178,2]
[380139097,1755570634539,-480.0,0.00019178,2]
[380139098,1755570634549,-480.0,0.00019178,2]